Workbook

Sheet Лист1
A2: Школа | B2: ГБОУ "Корсабашская школа-интернат" | E2: Отд./корп | H2: День | I2: 2025-09-04
A4: № п/п | B4: Наименование блюда | C4: Выход | D4: Пищевые вещества,г | G4: Эн.ц
C5: г | D5: Б | E5: Ж | F5: У | G5: Ккал
A6: 1 | B6: 2 | C6: 3 | D6: 4 | E6: 5 | F6: 6 | G6: 7
B7: Завтрак 1
A8: 190 | B8: Запеканка творожная | C8: 200 | D8: 28,03 | E8: 18,23 | F8: 23,73 | G8: 260,03
A9: 432 | B9: Кофейный напиток с молоком | C9: 200 | D9: 4,07 | E9: 4,57 | F9: 13,39 | G9: 75,54
B10: Хлеб пшеничный | C10: 100 | D10: 7,60 | E10: 0,80 | F10: 48,60 | G10: 165,28
A11: 13 | B11: Молоко сгущеное | C11: 28 | D11: 2,02 | E11: 2,38 | F11: 15,68 | G11: 62,22
B12: Итого завтрак | D12: 41,72 | E12: 25,98 | F12: 101,4 | G12: 563,08
B13: Обед
A14: 87 | B14: Борщ с капустой и картофелем и со сметаной | C14: 300 | D14: 15,51 | E14: 18,87 | F14: 27,96 | G14: 238,76
A15: 125 | B15: Рис отварной | C15: 180 | D15: 4,58 | E15: 7,39 | F15: 46,33 | G15: 190,93
A16: 272 | B16: Котлеты из говядины | C16: 110 | D16: 19,87 | E16: 22,41 | F16: 11,60 | G16: 227,47
A17: 33 | B17: Салат из белокочанной капусты с морковью | C17: 100 | D17: 1,59 | E17: 5,09 | F17: 8,20 | G17: 59,05
A18: 199 | B18: Компот из сухофрутов | C18: 200 | D18: 0,12 | E18: 0,00 | F18: 9,54 | G18: 25,53
B19: Фрукты свежие | C19: 120 | D19: 0,48 | E19: 0,48 | F19: 11,76 | G19: 39,17
A20: 505 | B20: Хлеб ржаной | C20: 90 | D20: 7,65 | E20: 2,70 | F20: 39,60 | G20: 150,00
B21: Итого обед | D21: =D14+D15+D16+D17+D18+D19+D20 -> 49.8 | E21: =E14+E15+E16+E17+E18+E19+E20 -> 56.94 | F21: =F14+F15+F16+F17+F18+F19+F20 -> 154.99 | G21: =G14+G15+G16+G17+G18+G19+G20 -> 930.91
B22: Полдник
A23: 224 | B23: Запеканка из творога | C23: 100 | D23: 15.92 | E23: 8.15 | F23: 14.49 | G23: 198.74
A24: 442 | B24: Сок | C24: 200 | D24: 1 | E24: 0.2 | F24: 19.8 | G24: 86
A25: 33 | B25: Фрукты | C25: 200 | D25: 0.8 | E25: 0.8 | F25: 16.6 | G25: 80.4
B26: Итого полдник | D26: =SUM(D23:D25) -> 17.72 | E26: =SUM(E23:E25) -> 9.15 | F26: 50.89 | G26: 365.14
B27: Ужин
A28: 181 | B28: Гречка | C28: 200 | D28: 7.38 | E28: 5.99 | F28: 33.52 | G28: 217.46
A29: 307 | B29: Отварная курица | C29: 120 | D29: 33.84 | E29: 8.64 | F29: 0.96 | G29: 218.4
A30: 430 | B30: Чай с сахаром | C30: 200 | D30: 0.22 | E30: 0.11 | F30: 16.2 | G30: 64.8
A31: 213 | B31: Яйцо | C31: 40 | D31: 5.1 | E31: 4.6 | F31: 0.3 | G31: 63
B32: Хлеб пшеничный | C32: 100 | D32: 7.7 | E32: 2.4 | F32: 53.4 | G32: 254
A33: 13 | B33: Масло | C33: 10 | D33: 0.1 | E33: 8.3 | F33: 0.1 | G33: 75
B34: Булочка, обогащенная микроэлементами | C34: 50 | D34: 5.75 | E34: 4.71 | F34: 13.32 | G34: 183.5
B35: Итого ужин | D35: =SUM(D28:D34) -> 60.09 | E35: =SUM(E28:E34) -> 34.75 | F35: 117.8 | G35: 1076.16
B36: 2-ой ужин
A37: 435 | B37: Кисломолочка | C37: 200 | D37: 6 | E37: 2 | F37: 8.4 | G37: 80
A38: 701 | B38: Пряник | C38: 30 | D38: 1.8 | E38: 1.4 | F38: 22.5 | G38: 109.8
B39: Итого полдник | D39: =SUM(D37:D38) -> 7.8 | E39: =SUM(E37:E38) -> 3.4 | F39: 30.9 | G39: 189.8
B40: ВСЕГО за день | D40: =D12+D21+D26+D35+D39 -> 177.13 | E40: =E12+E21+E26+E35+E39 -> 130.22 | F40: =F12+F21+F26+F35+F39 -> 455.98 | G40: =G12+G21+G26+G35+G39 -> 3125.09
